fUST/lending_fUST_20250606
["ID","MTS","AMOUNT","RATE_DAILY","PERIOD"]
[364625345,1749167440403,-2000.0,0.00024273,2]
[364625347,1749167440412,-2000.0,0.00024273,2]
[364625349,1749167440422,-2000.0,0.00024273,2]
[364625351,1749167440431,-2000.0,0.00024273,2]
[364625353,1749167440440,-2000.0,0.00024273,2]
[364625355,1749167440449,-2000.0,0.00024273,2]
[364625357,1749167440458,-2000.0,0.00024273,2]
[364625359,1749167440468,-665.35522838,0.00024273,2]
[364625361,1749167440477,-962.0,0.00024297,2]
[364625363,1749167440491,-709.0,0.00024297,2]
[364625365,1749167440500,-2224.0,0.00024297,2]
[364625367,1749167440510,-405.0,0.00024297,2]
[364625369,1749167440519,-151.608,0.00024297,2]
[364625371,1749167440529,-196.698,0.00024297,2]
[364625373,1749167440538,-2000.0,0.000243,2]
[364625375,1749167440547,-2000.0,0.000243,2]
[364625378,1749167440558,-133329.56,0.000243,7]
[364625380,1749167440568,-1253.17,0.000243,2]
[364625382,1749167440578,-151.0,0.000243,7]
[364625384,1749167440587,-151.0,0.000243,7]
[364625386,1749167440596,-151.0,0.000243,7]
[364625387,1749167440605,-151.0,0.000243,7]
[364625389,1749167440614,-151.0,0.000243,7]
[364625392,1749167440623,-151.0,0.000243,7]
[364625393,1749167440632,-151.0,0.000243,7]
[364625396,1749167440641,-151.0,0.000243,7]
[364625398,1749167440651,-257.22076,0.000243,7]
[364625399,1749167440660,-151.0,0.000243,8]
[364625402,1749167440671,-674.6,0.000243,7]
[364625404,1749167440680,-155.0,0.000243,2]
[364625405,1749167440689,-1963.883176,0.000243,5]
[364625407,1749167440699,-207.05840928,0.00024301,2]
[364625408,1749167440708,-151.0,0.00024301,7]
[364625409,1749167440718,-151.0,0.00024301,7]
[364625410,1749167440727,-151.0,0.00024301,7]
[364625411,1749167440736,-211.269124,0.00024301,7]
[364625412,1749167440749,-151.0,0.00024301,7]
[364625413,1749167440758,-151.0,0.00024301,7]
[364625414,1749167440768,-151.0,0.00024301,7]
[364625415,1749167440777,-151.0,0.00024301,7]
[364625416,1749167440786,-151.0,0.00024301,7]
[364625417,1749167440796,-255.18757,0.00024301,7]
[364625418,1749167440806,-151.0,0.00024301,7]
[364625419,1749167440815,-151.0,0.00024301,7]
[364625420,1749167440825,-152.866879,0.00024301,7]
[364625421,1749167440834,-151.0,0.00024301,7]
[364625422,1749167440844,-151.0,0.00024301,7]
[364625423,1749167440853,-151.0,0.00024301,7]
[364625424,1749167440862,-151.0,0.00024301,7]
[364625425,1749167440871,-151.0,0.00024301,7]
[364625426,1749167440885,-151.0,0.00024301,7]
[364625427,1749167440897,-151.0,0.00024301,7]
[364625428,1749167440907,-151.0,0.00024301,7]
[364625429,1749167440917,-151.0,0.00024301,7]
[364625431,1749167440926,-275.524776,0.00024301,7]
[364625433,1749167440935,-151.0,0.00024301,7]
[364625435,1749167440943,-151.0,0.00024301,7]
[364625437,1749167440952,-151.0,0.00024301,7]
[364625439,1749167440962,-297.136932,0.00024301,7]
[364625441,1749167440971,-457.183155,0.00024301,7]
[364625443,1749167440981,-457.183155,0.00024301,7]
[364625445,1749167440990,-457.183155,0.00024301,7]
[364625446,1749167440999,-457.183155,0.00024301,7]
[364625448,1749167441009,-457.183155,0.00024301,7]
[364625451,1749167441018,-457.183155,0.00024301,7]
[364625453,1749167441028,-457.183155,0.00024301,7]
[364625454,1749167441037,-457.183155,0.00024301,7]
[364625457,1749167441046,-457.183155,0.00024301,7]
[364625458,1749167441055,-457.183155,0.00024301,7]
[364625469,1749167441153,-457.183155,0.00024301,7]
[364625471,1749167441163,-457.183155,0.00024301,7]
[364625473,1749167441172,-457.183155,0.00024301,7]
[364625475,1749167441182,-457.183155,0.00024301,7]
[364625477,1749167441191,-457.183155,0.00024301,7]
[364625478,1749167441200,-457.183155,0.00024301,7]
[364625480,1749167441209,-457.183155,0.00024301,7]
[364625482,1749167441219,-457.183155,0.00024301,7]
[364625484,1749167441228,-457.183155,0.00024301,7]
[364625486,1749167441237,-457.183161,0.00024301,7]
[364625488,1749167441246,-151.0,0.00024301,7]
[364625490,1749167441255,-151.0,0.00024301,7]
[364625492,1749167441265,-239.63819,0.00024301,7]
[364625494,1749167441274,-151.0,0.00024301,7]
[364625496,1749167441283,-151.0,0.00024301,7]
[364625498,1749167441292,-151.0,0.00024301,7]
[364625500,1749167441302,-151.0,0.00024301,7]
[364625502,1749167441311,-151.0,0.00024301,7]
[364625504,1749167441321,-151.0,0.00024301,7]
[364625506,1749167441330,-151.0,0.00024301,7]
[364625508,1749167441339,-151.0,0.00024301,7]
[364625510,1749167441349,-151.0,0.00024301,7]
[364625512,1749167441358,-151.0,0.00024301,7]
[364625514,1749167441368,-151.0,0.00024301,7]
[364625516,1749167441377,-151.0,0.00024301,7]
[364625518,1749167441386,-151.0,0.00024301,7]
[364625520,1749167441395,-151.0,0.00024301,7]
[364625522,1749167441404,-186.114348,0.00024301,7]
[364625524,1749167441414,-179.833783,0.00024301,7]
[364625526,1749167441423,-179.833783,0.00024301,7]
[364625528,1749167441433,-179.833783,0.00024301,7]
[364625530,1749167441442,-179.833783,0.00024301,7]
[364625532,1749167441451,-179.833783,0.00024301,7]
[364625534,1749167441460,-179.833783,0.00024301,7]
[364625536,1749167441470,-179.833783,0.00024301,7]
[364625538,1749167441480,-179.833783,0.00024301,7]
[364625540,1749167441493,-179.833783,0.00024301,7]
[364625542,1749167441502,-179.833783,0.00024301,7]
[364625544,1749167441511,-179.833783,0.00024301,7]
[364625546,1749167441520,-179.833783,0.00024301,7]
[364625548,1749167441531,-179.833783,0.00024301,7]
[364625550,1749167441539,-179.833783,0.00024301,7]
[364625552,1749167441548,-179.833783,0.00024301,7]
[364625554,1749167441558,-179.833783,0.00024301,7]
[364625556,1749167441568,-179.833783,0.00024301,7]
[364625558,1749167441578,-179.833783,0.00024301,7]
[364625560,1749167441587,-179.833783,0.00024301,7]
[364625562,1749167441596,-179.833789,0.00024301,7]
[364625564,1749167441605,-151.0,0.00024301,7]
[364625566,1749167441614,-364.5107659,0.00024301,2]
[364625568,1749167441624,-158.5442955,0.00024301,2]
[364625569,1749167441633,-311.4322408,0.00024301,2]
[364625572,1749167441643,-306.0,0.00024301,2]
[364625573,1749167441652,-151.0,0.00024305,7]
[364625576,1749167441662,-151.0,0.00024305,7]
[364625578,1749167441671,-151.0,0.00024305,7]
[364625579,1749167441680,-151.0,0.00024305,7]
[364625581,1749167441690,-151.0,0.00024305,7]
[364625583,1749167441699,-244.280696,0.00024305,7]
[364625585,1749167441708,-151.0,0.00024305,7]
[364625587,1749167441717,-168.081542,0.00024305,7]
[364625589,1749167441725,-352.863214,0.00024305,7]
[364625591,1749167441734,-352.863214,0.00024305,7]
[364625593,1749167441743,-352.863214,0.00024305,7]
[364625595,1749167441752,-352.863214,0.00024305,7]
[364625597,1749167441762,-352.863214,0.00024305,7]
[364625599,1749167441771,-352.863214,0.00024305,7]
[364625601,1749167441780,-352.863214,0.00024305,7]
[364625603,1749167441789,-352.863214,0.00024305,7]
[364625605,1749167441798,-352.863214,0.00024305,7]
[364625607,1749167441808,-153.159294,0.00024305,7]
[364625609,1749167441818,-352.863214,0.00024305,7]
[364625611,1749167441827,-352.863214,0.00024305,7]
[364625613,1749167441836,-352.863214,0.00024305,7]
[364625615,1749167441845,-352.863214,0.00024305,7]
[364625617,1749167441854,-352.863214,0.00024305,7]
[364625619,1749167441863,-352.863214,0.00024305,7]
[364625621,1749167441874,-352.863214,0.00024305,7]
[364625623,1749167441883,-352.863214,0.00024305,7]
[364625625,1749167441893,-352.863214,0.00024305,7]
[364625627,1749167441902,-352.863214,0.00024305,7]
[364625629,1749167441911,-352.863218,0.00024305,7]
[364625631,1749167441921,-151.0,0.00024305,7]
[364625633,1749167441930,-161.957282,0.00024305,7]
[364625635,1749167441939,-151.0,0.00024305,7]
[364625637,1749167441948,-151.0,0.00024305,7]
[364625639,1749167441957,-151.0,0.00024305,7]
[364625641,1749167441966,-159.592054,0.00024305,7]
[364625643,1749167441976,-151.0,0.00024305,7]
[364625645,1749167441984,-151.0,0.00024305,7]
[364625647,1749167441994,-151.0,0.00024305,7]
[364625649,1749167442003,-151.0,0.00024305,7]
[364625651,1749167442012,-151.0,0.00024305,7]
[364625653,1749167442022,-151.0,0.00024305,7]
[364625655,1749167442031,-151.0,0.00024305,7]
[364625657,1749167442040,-151.0,0.00024305,7]
[364625659,1749167442049,-207.845236,0.00024305,7]
[364625661,1749167442058,-151.0,0.00024305,7]
[364625663,1749167442067,-151.0,0.00024305,7]
[364625665,1749167442076,-151.0,0.00024305,7]
[364625666,1749167442085,-151.0,0.00024305,7]
[364625668,1749167442095,-151.0,0.00024305,7]
[364625670,1749167442104,-217.28055,0.00024305,7]
[364625673,1749167442114,-151.0,0.00024305,7]
[364625674,1749167442123,-151.0,0.00024305,7]
[364625676,1749167442132,-151.0,0.00024305,7]
[364625678,1749167442141,-151.0,0.00024305,7]
[364625680,1749167442151,-151.0,0.00024305,7]
[364625682,1749167442160,-151.0,0.00024305,7]
[364625684,1749167442170,-151.0,0.00024305,7]
[364625686,1749167442179,-151.0,0.00024305,7]
[364625688,1749167442189,-268.666662,0.00024305,7]
[364625690,1749167442199,-151.0,0.00024305,7]
[364625692,1749167442209,-151.0,0.00024305,7]
[364625694,1749167442218,-411662.07224639,0.00024306,20]
[364625703,1749167442294,-911122.31618322,0.00024306,20]
[364625705,1749167442304,-3094085.76368332,0.00024306,20]
[364625708,1749167442315,-58671.93815886,0.00024306,20]
[364625786,1749167442975,-226925.29105378,0.00024306,20]
[364625865,1749167443778,-42.20169269,0.0002014,2]
[364626207,1749167447046,-457.79830731,0.0002014,2]
[364626209,1749167447055,-450.31995003,0.0002014,2]
[364626211,1749167447065,-8451.1274923,0.00024306,20]
[364628006,1749167466471,197.227288,0.00013699,2]
[364629943,1749167486593,2000.0,0.00021089,120]
[364630465,1749167774308,1251.54349001,0.00018867,2]
[364630466,1749167774333,8748.45650999,0.00018867,2]
[364630469,1749167890831,-173.899304,0.00019178,2]
[364630470,1749167890853,-111.23602564,0.00019447,2]
[364630471,1749167893873,-212.0045471,0.00019447,2]
[364630472,1749167896213,-224.536575,0.00019447,2]
[364630473,1749167898524,-299.83562182,0.00019447,2]
[364630474,1749167900881,-36.80394244,0.00019447,2]
[364630475,1749167916946,2207.26774001,0.00018935,2]
[364630476,1749167916972,10955.72425,0.00018935,2]
[364630477,1749167917000,10955.72425,0.00018935,2]
[364630478,1749167917028,781.28375999,0.00018935,2]
[364630481,1749168032593,200.0,0.00023803,120]
[364630485,1749168111885,-181.86573826,0.00019015,2]
[364630486,1749168116317,-2.18096874,0.00019015,2]
[364630490,1749168215981,597.520184,0.00018865,2]
[364630498,1749168338118,-500.0,0.000197,2]
[364630499,1749168338141,-293.03353784,0.000197,2]
[364630500,1749168338162,-261.55764816,0.0001984,2]
[364630501,1749168338187,-1200.0,0.00019862,2]
[364630502,1749168338209,-300.0,0.00019863,2]
[364630503,1749168338230,-300.0,0.00019863,2]
[364630504,1749168338252,-300.0,0.00019863,2]
[364630505,1749168338273,-300.0,0.00019863,2]
[364630506,1749168338503,-300.0,0.00019863,2]
[364630507,1749168338524,-300.0,0.00019863,2]
[364630508,1749168338545,-440.0,0.00019865,2]
[364630509,1749168338567,-440.0,0.00019865,2]
[364630510,1749168338588,-440.0,0.00019865,2]
[364630511,1749168338609,-440.0,0.00019865,2]
[364630512,1749168338630,-440.0,0.00019865,2]
[364630513,1749168338652,-440.0,0.00019865,2]
[364630514,1749168338672,-338.79835006,0.00019865,2]
[364630515,1749168338697,-105.54092491,0.00019865,2]
[364630517,1749168365095,317.41312863,0.000189,2]
[364630518,1749168366074,186.23675429,0.000182,2]
[364630519,1749168366100,3138.76324571,0.000182,2]
[364630521,1749168425267,-154.42652961,0.00019766,2]
[364630522,1749168425291,-117.62852373,0.00019864,2]
[364630523,1749168433085,-182.37147627,0.00019864,2]
[364630524,1749168433107,-300.0,0.00019864,2]
[364630525,1749168433130,-334.45907509,0.00019865,2]
[364630526,1749168433152,-440.0,0.00019865,2]
[364630527,1749168433175,-440.0,0.00019865,2]
[364630528,1749168433198,-420.0,0.00019865,2]
[364630529,1749168433221,-440.0,0.00019865,2]
[364630530,1749168433242,-440.0,0.00019865,2]
[364630531,1749168433271,-440.0,0.00019865,2]
[364630532,1749168433294,-440.0,0.00019865,2]
[364630533,1749168433316,-440.0,0.00019865,2]
[364630534,1749168433338,-422.72885539,0.00019865,2]
[364630535,1749168433359,-440.0,0.00019865,2]
[364630536,1749168433382,-440.0,0.00019865,2]
[364630537,1749168433404,-288.37464327,0.00019865,2]
[364630538,1749168437126,-151.62535673,0.00019865,2]
[364630539,1749168437147,-420.0,0.00019865,2]
[364630540,1749168437172,-271.01586478,0.00019865,2]
[364630541,1749168439210,201.670502,0.00013699,2]
[364630543,1749168465831,228.0809647,0.00019015,120]
[364630546,1749168547638,162.710189,0.00018882,2]
[364630547,1749168552433,211.60875242,0.000189,2]
[364630548,1749168565211,-152.90082717,0.00019765,2]
[364630549,1749168565236,-172.80492963,0.00019765,2]
[364630550,1749168565259,-93.02041324,0.00019864,2]
[364630552,1749168614859,3255.9189592,0.00018915,2]
[364630557,1749168631541,200.0,0.00024038,120]
[364630571,1749168632068,-300.0,0.00019864,2]
[364630572,1749168632077,-300.0,0.00019864,2]
[364630573,1749168632087,-300.0,0.00019864,2]
[364630574,1749168632096,-300.0,0.00019864,2]
[364630575,1749168632105,-207.0,0.00019864,2]
[364630576,1749168632114,-1108.0,0.00019864,2]
[364630577,1749168632162,-92.0,0.00019864,2]
[364630578,1749168632174,-300.0,0.00019864,2]
[364630580,1749168632183,-168.98413522,0.00019865,2]
[364630582,1749168632192,-440.0,0.00019865,2]
[364630584,1749168632201,-440.0,0.00019865,2]
[364630585,1749168632211,-440.0,0.00019865,2]
[364630587,1749168632220,-422.17399587,0.00019865,2]
[364630589,1749168632229,-440.0,0.00019865,2]
[364630591,1749168632242,-440.0,0.00019865,2]
[364630592,1749168632259,-509.34998201,0.00019865,2]
[364630594,1749168632268,-430.0,0.00019865,2]
[364630596,1749168632278,-440.0,0.00019865,2]
[364630598,1749168632287,-447.50750268,0.00019865,2]
[364630599,1749168632296,-440.0,0.00019865,2]
[364630600,1749168632306,-440.0,0.00019865,2]
[364630601,1749168632316,-440.0,0.00019865,2]
[364630602,1749168632325,-440.0,0.00019865,2]
[364630603,1749168632334,-440.0,0.00019865,2]
[364630604,1749168632343,-377.45078016,0.00019865,2]
[364630605,1749168632352,-440.0,0.00019865,2]
[364630606,1749168632361,-440.0,0.00019865,2]
[364630607,1749168632370,-411.59704046,0.00019865,2]
[364630608,1749168632380,-440.0,0.00019865,2]
[364630609,1749168632389,-440.0,0.00019865,2]
[364630610,1749168632399,-440.0,0.00019865,2]
[364630611,1749168632408,-440.0,0.00019865,2]
[364630612,1749168632417,-419.61018142,0.00019865,2]
[364630613,1749168632427,-436.5062253,0.00019865,2]
[364630614,1749168632436,-440.0,0.00019865,2]
[364630615,1749168632445,-440.0,0.00019865,2]
[364630616,1749168632454,-315.44539189,0.00019865,2]
[364630617,1749168632464,-440.0,0.00019865,2]
[364630618,1749168632473,-440.0,0.00019865,2]
[364630619,1749168632482,-460.78,0.00019865,2]
[364630620,1749168632491,-440.0,0.00019865,2]
[364630621,1749168632500,-440.0,0.00019865,2]
[364630622,1749168632509,-440.0,0.00019865,2]
[364630623,1749168632519,-536.1101045,0.00019865,2]
[364630624,1749168632528,-248.69787325,0.00019865,2]
[364630625,1749168632537,-366.64023349,0.00019865,2]
[364630626,1749168632547,-440.0,0.00019865,2]
[364630627,1749168632557,-440.0,0.00019865,2]
[364630628,1749168632566,-227.21015851,0.00019865,2]
[364630630,1749168632575,-440.0,0.00019865,2]
[364630632,1749168632584,-440.0,0.00019865,2]
[364630634,1749168632593,-500.0,0.00019865,2]
[364630636,1749168632602,-440.0,0.00019865,2]
[364630637,1749168632611,-440.0,0.00019865,2]
[364630639,1749168632620,-430.0,0.00019865,2]
[364630641,1749168632629,-333.92684136,0.00019865,2]
[364630643,1749168632638,-457.63169503,0.00019865,2]
[364630645,1749168632647,-440.0,0.00019865,2]
[364630647,1749168632656,-440.0,0.00019865,2]
[364630649,1749168632667,-440.0,0.00019865,2]
[364630651,1749168632676,-440.0,0.00019865,2]
[364630653,1749168632685,-413.96152516,0.00019865,2]
[364630655,1749168632695,-440.0,0.00019865,2]
[364630656,1749168632703,-440.0,0.00019865,2]
[364630658,1749168632713,-440.0,0.00019865,2]
[364630659,1749168632722,-326.08133367,0.00019865,2]
[364630660,1749168632732,-160.41041332,0.00019865,2]
[364630662,1749168632742,-440.0,0.00019865,2]
[364630664,1749168632751,-440.0,0.00019865,2]
[364630666,1749168632760,-440.0,0.00019865,2]
[364630668,1749168632771,-440.0,0.00019865,2]
[364630670,1749168632780,-420.0,0.00019865,2]
[364630672,1749168632790,-440.0,0.00019865,2]
[364630674,1749168632799,-461.7281109,0.00019865,2]
[364630676,1749168632808,-440.0,0.00019865,2]
[364630678,1749168632817,-768.38,0.00019865,2]
[364630680,1749168632826,-440.0,0.00019865,2]
[364630681,1749168632835,-440.0,0.00019865,2]
[364630683,1749168632844,-440.0,0.00019865,2]
[364630685,1749168632853,-430.0,0.00019865,2]
[364630687,1749168632863,-440.0,0.00019865,2]
[364630689,1749168632872,-440.0,0.00019865,2]
[364630691,1749168632882,-440.0,0.00019865,2]
[364630693,1749168632892,-440.0,0.00019865,2]
[364630694,1749168632905,-440.0,0.00019865,2]
[364630696,1749168632914,-440.0,0.00019865,2]
[364630698,1749168632926,-440.0,0.00019865,2]
[364630700,1749168632936,-440.0,0.00019865,2]
[364630702,1749168632945,-425.58312469,0.00019865,2]
[364630704,1749168632955,-440.0,0.00019865,2]
[364630706,1749168632964,-440.0,0.00019865,2]
[364630708,1749168632974,-440.0,0.00019865,2]
[364630710,1749168632987,-440.0,0.00019865,2]
[364630712,1749168633000,-440.0,0.00019865,2]
[364630714,1749168633010,-440.0,0.00019865,2]
[364630716,1749168633019,-440.0,0.00019866,2]
[364630718,1749168633028,-440.0,0.00019866,2]
[364630720,1749168633038,-440.0,0.00019866,2]
[364630722,1749168633047,-440.0,0.00019866,2]
[364630724,1749168633056,-440.0,0.00019866,2]
[364630725,1749168633066,-440.0,0.00019866,2]
[364630727,1749168633076,-440.0,0.00019866,2]
[364630729,1749168633085,-420.0,0.00019866,2]
[364630731,1749168633094,-479.28454572,0.00019866,2]
[364630733,1749168633103,-440.0,0.00019866,2]
[364630735,1749168633113,-440.0,0.00019866,2]
[364630737,1749168633122,-440.0,0.00019866,2]
[364630739,1749168633132,-440.0,0.00019866,2]
[364630741,1749168633142,-420.0,0.00019866,2]
[364630743,1749168633152,-420.0,0.00019866,2]
[364630745,1749168633161,-440.0,0.00019866,2]
[364630747,1749168633174,-390.0,0.00019866,2]
[364630749,1749168633184,-440.0,0.00019866,2]
[364630751,1749168633193,-420.0,0.00019866,2]
[364630753,1749168633203,-440.0,0.00019866,2]
[364630754,1749168633213,-420.0,0.00019866,2]
[364630755,1749168633223,-426.72618893,0.00019866,2]
[364630756,1749168633232,-440.0,0.00019866,2]
[364630757,1749168633242,-440.0,0.00019866,2]
[364630758,1749168633252,-362.79546738,0.00019866,2]
[364630759,1749168633262,-440.0,0.00019866,2]
[364630760,1749168633271,-440.0,0.00019866,2]
[364630761,1749168633280,-380.0,0.00019866,2]
[364630762,1749168633290,-440.0,0.00019866,2]
[364630763,1749168633299,-420.0,0.00019866,2]
[364630764,1749168633308,-440.0,0.00019866,2]
[364630765,1749168633318,-215.57,0.00019866,2]
[364630766,1749168633327,-440.0,0.00019866,2]
[364630767,1749168633337,-440.0,0.00019866,2]
[364630768,1749168633346,-440.0,0.00019866,2]
[364630769,1749168633356,-440.0,0.00019866,2]
[364630770,1749168633365,-440.0,0.00019866,2]
[364630771,1749168633375,-440.0,0.00019866,2]
[364630772,1749168633386,-440.0,0.00019866,2]
[364630773,1749168633396,-440.0,0.00019866,2]
[364630774,1749168633406,-440.0,0.00019866,2]
[364630775,1749168633415,-403.40766333,0.00019866,2]
[364630776,1749168633426,-349.9037,0.00019866,2]
[364630777,1749168633436,-440.0,0.00019866,2]
[364630778,1749168633446,-440.0,0.00019866,2]
[364630779,1749168633457,-439.0,0.00019866,2]
[364630780,1749168633468,-440.0,0.00019866,2]
[364630781,1749168633478,-440.0,0.00019866,2]
[364630782,1749168633488,-440.0,0.00019866,2]
[364630783,1749168633497,-440.0,0.00019866,2]
[364630784,1749168633507,-440.0,0.00019866,2]
[364630785,1749168633516,-397.93024049,0.00019866,2]
[364630786,1749168633525,-440.0,0.00019866,2]
[364630787,1749168633535,-440.0,0.00019866,2]
[364630788,1749168633544,-440.0,0.00019866,2]
[364630789,1749168633554,-440.0,0.00019866,2]
[364630790,1749168633564,-440.0,0.00019866,2]
[364630791,1749168633573,-440.0,0.00019866,2]
[364630792,1749168633583,-440.0,0.00019866,2]
[364630793,1749168633592,-440.0,0.00019866,2]
[364630794,1749168633602,-440.0,0.00019866,2]
[364630795,1749168633611,-440.0,0.00019866,2]
[364630796,1749168633620,-440.0,0.00019866,2]
[364630797,1749168633630,-440.0,0.00019866,2]
[364630798,1749168633639,-440.0,0.00019866,2]
[364630799,1749168633648,-385.6649069,0.00019866,2]
[364630800,1749168633658,-440.0,0.00019866,2]
[364630801,1749168633667,-440.0,0.00019866,2]
[364630802,1749168633677,-411.31898292,0.00019866,2]
[364630803,1749168633686,-440.0,0.00019866,2]
[364630804,1749168633695,-440.0,0.00019866,2]
[364630805,1749168633706,-440.0,0.00019866,2]
[364630806,1749168633716,-440.0,0.00019866,2]
[364630807,1749168633725,-440.0,0.00019866,2]
[364630808,1749168633736,-390.19914163,0.00019866,2]
[364630809,1749168633745,-440.0,0.00019866,2]
[364630810,1749168633755,-440.0,0.00019866,2]
[364630811,1749168633764,-312.87,0.00019866,2]
[364630812,1749168633774,-395.06328798,0.00019866,2]
[364630813,1749168633783,-440.0,0.00019866,2]
[364630814,1749168633792,-421.6133537,0.00019866,2]
[364630815,1749168633802,-440.0,0.00019866,2]
[364630816,1749168633812,-440.0,0.00019866,2]
[364630817,1749168633822,-440.0,0.00019866,2]
[364630818,1749168633833,-440.0,0.00019866,2]
[364630819,1749168633842,-487.81373247,0.00019866,2]
[364630820,1749168633852,-440.0,0.00019866,2]
[364630821,1749168633861,-440.0,0.00019866,2]
[364630822,1749168633871,-440.0,0.00019866,2]
[364630823,1749168633881,-440.0,0.00019866,2]
[364630824,1749168633890,-440.0,0.00019866,2]
[364630825,1749168633902,-440.0,0.00019866,2]
[364630826,1749168633912,-500.0,0.00019866,2]
[364630827,1749168633923,-500.0,0.00019866,2]
[364630828,1749168633932,-440.0,0.00019866,2]
[364630829,1749168633942,-440.0,0.00019866,2]
[364630830,1749168633952,-440.0,0.00019866,2]
[364630831,1749168633961,-440.0,0.00019866,2]
[364630832,1749168633971,-440.0,0.00019866,2]
[364630833,1749168633982,-424.91056021,0.00019866,2]
[364630834,1749168633992,-440.0,0.00019866,2]
[364630835,1749168634001,-440.0,0.00019866,2]
[364630836,1749168634011,-440.0,0.00019866,2]
[364630837,1749168634021,-440.0,0.00019866,2]
[364630838,1749168634030,-440.0,0.00019866,2]
[364630839,1749168634143,-440.0,0.00019866,2]
[364630840,1749168634153,-440.0,0.00019866,2]
[364630841,1749168634163,-440.0,0.00019866,2]
[364630842,1749168634174,-440.0,0.00019866,2]
[364630843,1749168634185,-420.0,0.00019866,2]
[364630844,1749168634194,-440.0,0.00019866,2]
[364630845,1749168634204,-440.0,0.00019866,2]
[364630846,1749168634214,-440.0,0.00019866,2]
[364630847,1749168634224,-440.0,0.00019866,2]
[364630848,1749168634234,-440.0,0.00019866,2]
[364630849,1749168634244,-342.35299928,0.00019866,2]
[364630850,1749168634254,-440.0,0.00019866,2]
[364630851,1749168634264,-440.0,0.00019866,2]
[364630852,1749168634273,-440.0,0.00019866,2]
[364630853,1749168634283,-440.0,0.00019866,2]
[364630854,1749168634293,-440.0,0.00019866,2]
[364630855,1749168634303,-440.0,0.00019866,2]
[364630856,1749168634314,-440.0,0.00019866,2]
[364630857,1749168634323,-440.0,0.00019866,2]
[364630858,1749168634333,-440.0,0.00019866,2]
[364630859,1749168634343,-472.09595252,0.00019866,2]
[364630860,1749168634353,-426.31146756,0.00019866,2]
[364630861,1749168634363,-440.0,0.00019866,2]
[364630862,1749168634373,-440.0,0.00019866,2]
[364630863,1749168634382,-440.0,0.00019866,2]
[364630864,1749168634392,-440.0,0.00019866,2]
[364630865,1749168634401,-188.0,0.00019866,2]
[364630866,1749168634411,-440.0,0.00019866,2]
[364630867,1749168634420,-421.2969658,0.00019866,2]
[364630868,1749168634430,-440.0,0.00019866,2]
[364630869,1749168634440,-440.0,0.00019866,2]
[364630870,1749168634449,-440.0,0.00019866,2]
[364630871,1749168634459,-440.0,0.00019866,2]
[364630872,1749168634469,-440.0,0.00019866,2]
[364630873,1749168634478,-509.50165453,0.00019866,2]
[364630874,1749168634487,-151.96250016,0.00019866,2]
[364630875,1749168634496,-440.0,0.00019866,2]
[364630876,1749168634506,-440.0,0.00019866,2]
[364630877,1749168634516,-440.0,0.00019866,2]
[364630878,1749168634526,-440.0,0.00019866,2]